[Event "Mentese GM 2019"]
[Site "Mentese"]
[Date "2019.06.28"]
[Round "9.4"]
[White "Sibashvili, Giorgi"]
[Black "Bagaturov, Giorgi"]
[Result "1-0"]
[ECO "B30"]
[WhiteElo "2368"]
[BlackElo "2422"]
[Annotator "NA"]
[PlyCount "85"]
[EventDate "2019.06.24"]
[EventType "schev"]
[EventCountry "TUR"]
[SourceTitle "playchess.com"]
[Source "ChessBase"]
[SourceQuality "1"]
[TimeControl "5400+30"]

1. e4 {[%emt 0:00:30]} c5 {[%emt 0:00:30]} 2. Nf3 {[%emt 0:00:00]} Nc6 {[%emt 0:01:30]} 3. Bb5 {[%emt 0:01:00]} e6 {[%emt 0:00:00]} 4. O-O {[%emt 0:01:30]} Nge7 {[%emt 0:00:00]} 5. c3 {[%emt 0:03:30]} a6 {[%emt 0:02:30]} 6. Be2 {[%emt 0:00:30]} d5 {[%emt 0:00:30]} 7. exd5 {[%emt 0:02:30]} Nxd5 {[%emt 0:01:30]} 8. d4 {[%emt 0:00:30]} Nf6 {[%emt 0:06:30]} 9. Be3 {[%emt 0:05:30]} Nd5 {[%emt 0:06:30]} 10. Bg5 {[%emt 0:06:30]} Be7 {[%emt 0:02:30]} 11. Bxe7 {[%emt 0:01:30]} Qxe7 {[%emt 0:00:30]} 12. dxc5 {[%emt 0:15:30]} Qxc5 {[%emt 0:00:30]} 13. Nbd2 {[%emt 0:00:30]} O-O {[%emt 0:02:30]} 14. Nb3 {[%emt 0:12:30]} Qe7 {[%emt 0:02:30]} 15. Nfd4 {[%emt 0:02:30]} Ne5 {[%emt 0:16:30]} 16. Re1 {[%emt 0:02:30]} Qf6 {[%emt 0:00:30]} 17. Nf3 $14 {[%emt 0:04:30]} Ng6 {[%emt 0:03:30]} 18. Qd4 {[%emt 0:03:30]} Qxd4 {[%emt 0:10:30]} 19. Nfxd4 {[%emt 0:01:30]} e5 {[%emt 0:00:30]} 20. Nc2 {[%emt 0:04:30]} Ndf4 {[%emt 0:06:30]} 21. Bf1 {[%emt 0:01:30]} Rd8 {[%emt 0:08:30]} 22. Rad1 {[%emt 0:02:30]} Bg4 {[%emt 0:02:30]} 23. f3 {[%emt 0:03:30]} Bf5 {[%emt 0:08:40]} 24. Ne3 {[%emt 0:00:30]} Bd3 {[%emt 0:00:06]} 25. Nc5 {[%emt 0:04:39]} Bxf1 {[%emt 0:00:10]} 26. Kxf1 {[%emt 0:00:15]} b6 {[%emt 0:01:08]} 27. Rxd8+ {[%emt 0:04:09]} Rxd8 {[%emt 0:00:05]} 28. Nxa6 {[%emt 0:00:07]} Rd2 {[%emt 0:01:11]} 29. g3 {[%emt 0:02:05]} Rxh2 {[%emt 0:01:16]} 30. gxf4 {[%emt 0:00:30]} Nxf4 {[%emt 0:00:06]} 31. Nb4 {[%emt 0:01:40]} Rh1+ {[%emt 0:02:45]} 32. Kf2 {[%emt 0:00:06]} Rh2+ {[%emt 0:00:05]} 33. Kg1 {[%emt 0:07:49]} Rxb2 {[%emt 0:00:18]} 34. Nc4 {[%emt 0:00:38]} Rg2+ {[%emt 0:03:21]} 35. Kh1 {[%emt 0:00:03]} f6 {[%emt 0:02:11]} 36. Nxb6 {[%emt 0:00:24]} Rf2 {[%emt 0:01:25]} 37. a4 {[%emt 0:03:46]} Rxf3 {[%emt 0:04:49]} 38. N6d5 {[%emt 0:00:08]} Rh3+ {[%emt 0:02:42]} 39. Kg1 {[%emt 0:00:01]} Ne6 {[%emt 0:00:22]} 40. a5 {[%emt 0:00:36]} Nc5 {[%emt 0:00:09]} 41. a6 {[%emt 0:00:28]} Nxa6 {[%emt 0:00:23]} 42. Nxa6 {[%emt 0:00:06]} Rh4 {[%emt 0:00:05]} 43. Rc1 {[%emt 0:00:34]} 1-0

[Event "Mentese GM 2019"]
[Site "Mentese"]
[Date "2019.06.28"]
[Round "9.5"]
[White "Alumert, Orkun Efe"]
[Black "Odeev, Handszar"]
[Result "1/2-1/2"]
[ECO "B52"]
[WhiteElo "2008"]
[BlackElo "2386"]
[Annotator "NA"]
[PlyCount "63"]
[EventDate "2019.06.24"]
[EventType "schev"]
[EventCountry "TUR"]
[SourceTitle "playchess.com"]
[Source "ChessBase"]
[SourceQuality "1"]
[TimeControl "5400+30"]

1. e4 {[%emt 0:00:30]} c5 {[%emt 0:11:30]} 2. Nf3 {[%emt 0:00:30]} d6 {[%emt 0:00:30]} 3. Bb5+ {[%emt 0:00:00]} Bd7 {[%emt 0:02:30]} 4. Bxd7+ {[%emt 0:02:00]} Nxd7 {[%emt 0:00:00]} 5. O-O {[%emt 0:02:30]} Ngf6 {[%emt 0:00:00]} 6. Re1 {[%emt 0:01:30]} Rc8 {[%emt 0:10:30]} 7. c4 {[%emt 0:04:30]} e6 {[%emt 0:09:30]} 8. Nc3 {[%emt 0:06:30]} Be7 {[%emt 0:07:30]} 9. d4 {[%emt 0:01:30]} cxd4 {[%emt 0:00:00]} 10. Qxd4 {[%emt 0:00:30]} a6 {[%emt 0:02:00]} 11. b3 {[%emt 0:01:30]} O-O {[%emt 0:08:30]} 12. Bb2 {[%emt 0:02:30]} Qa5 {[%emt 0:01:30]} 13. Qd2 {[%emt 0:02:30]} Qb6 {[%emt 0:09:30]} 14. Rad1 $11 {[%emt 0:09:30]} Rfd8 {[%emt 0:01:30]} 15. Qe3 {[%emt 0:05:30]} Qa5 {[%emt 0:04:30]} 16. Qd2 {[%emt 0:01:30]} Qc7 {[%emt 0:00:30]} 17. Qe2 {[%emt 0:03:30]} Bf8 {[%emt 0:00:30]} 18. h3 {[%emt 0:01:30]} Qa5 {[%emt 0:01:30]} 19. a3 {[%emt 0:13:30]} Qb6 {[%emt 0:01:30]} 20. Nd4 {[%emt 0:06:30]} Nc5 {[%emt 0:07:26]} 21. b4 {[%emt 0:01:30]} Ncd7 {[%emt 0:00:02]} 22. Na4 {[%emt 0:01:30]} Qa7 {[%emt 0:01:10]} 23. Nb3 {[%emt 0:03:30]} Qb8 {[%emt 0:03:41]} 24. Rc1 {[%emt 0:02:30]} Re8 {[%emt 0:02:04]} 25. e5 {[%emt 0:07:01]} dxe5 {[%emt 0:00:28]} 26. Bxe5 {[%emt 0:00:06]} Nxe5 {[%emt 0:00:41]} 27. Qxe5 {[%emt 0:00:08]} Bd6 {[%emt 0:00:03]} 28. Qe2 {[%emt 0:01:52]} Bf4 {[%emt 0:01:01]} 29. Rcd1 {[%emt 0:00:36]} Qc7 {[%emt 0:01:19]} 30. c5 {[%emt 0:02:06]} h5 {[%emt 0:00:28]} 31. Nb6 {[%emt 0:00:23]} Rcd8 {[%emt 0:00:01]} 32. Na5 {[%emt 0:01:49]} 1/2-1/2

[Event "Mentese GM 2019"]
[Site "Mentese"]
[Date "2019.06.28"]
[Round "10.1"]
[White "Sevdimaliyev, Urfan"]
[Black "Annaberdiev, Meilis"]
[Result "1/2-1/2"]
[ECO "B44"]
[WhiteElo "2362"]
[BlackElo "2532"]
[Annotator "ChessBase"]
[PlyCount "133"]
[EventDate "2019.06.24"]
[EventType "schev"]
[EventCountry "TUR"]
[SourceTitle "playchess.com"]
[Source "ChessBase"]
[SourceQuality "1"]
[TimeControl "5400+30"]

1. e4 {[%emt 0:00:30]} c5 {[%emt 0:00:30]} 2. Nf3 {[%emt 0:00:00]} e6 {[%emt 0:00:00]} 3. c4 {[%emt 0:01:00]} Nc6 {[%emt 0:00:00]} 4. Nc3 {[%emt 0:00:30]} Nf6 {[%emt 0:00:00]} 5. d4 {[%emt 0:03:30]} cxd4 {[%emt 0:00:00]} 6. Nxd4 {[%emt 0:00:30]} Bb4 {[%emt 0:00:30]} 7. Nxc6 {[%emt 0:01:30]} bxc6 {[%emt 0:00:00]} 8. Bd3 {[%emt 0:04:30]} e5 {[%emt 0:00:00]} 9. O-O {[%emt 0:00:30]} O-O {[%emt 0:00:00]} 10. f4 {[%emt 0:02:30]} d6 {[%emt 0:09:00]} 11. Na4 {[%emt 0:04:30]} d5 {[%emt 0:07:30]} 12. fxe5 {[%emt 0:11:30]} Nxe4 {[%emt 0:01:30]} 13. Qc2 {[%emt 0:09:30]} f5 {[%emt 0:27:30]} 14. exf6 {[%emt 0:02:30]} Nxf6 {[%emt 0:00:00]} 15. Bg5 {[%emt 0:02:30]} h6 {[%emt 0:01:00]} 16. Bh4 {[%emt 0:03:30]} Bd6 {[%emt 0:07:30]} 17. cxd5 {[%emt 0:05:30]} cxd5 {[%emt 0:01:30]} 18. Qc6 {[%emt 0:05:30]} Be6 {[%emt 0:03:30]} 19. Bg3 {[%emt 0:09:30]} Bd7 {[%emt 0:06:30]} 20. Qxd6 {[%emt 0:01:30]} Bxa4 {[%emt 0:00:00]} 21. Qe6+ {[%emt 0:02:30]} Kh8 {[%emt 0:00:00]} 22. Bh4 {[%emt 0:01:30]} Bd7 {[%emt 0:02:30]} 23. Qd6 {[%emt 0:00:30]} Qb6+ {[%emt 0:00:30]} 24. Qxb6 {[%emt 0:00:30]} axb6 {[%emt 0:00:00]} 25. Bxf6 {[%emt 0:00:00]} Rxf6 {[%emt 0:00:00]} 26. Rxf6 {[%emt 0:00:00]} gxf6 {[%emt 0:00:30]} 27. Kf2 {[%emt 0:00:30]} Kg8 {[%emt 0:01:30]} 28. a3 {[%emt 0:01:30]} Kf7 {[%emt 0:02:30]} 29. Ke3 {[%emt 0:02:30]} Ke6 {[%emt 0:01:30]} 30. Kf4 {[%emt 0:02:30]} Kd6 {[%emt 0:01:30]} 31. Bf5 {[%emt 0:03:19]} Rc8 {[%emt 0:06:30]} 32. Bxd7 {[%emt 0:02:50]} Kxd7 {[%emt 0:00:00]} 33. Rd1 {[%emt 0:00:17]} Ke6 {[%emt 0:02:00]} 34. Re1+ {[%emt 0:01:04]} Kf7 {[%emt 0:00:30]} 35. Re2 {[%emt 0:00:51]} Rc1 {[%emt 0:00:30]} 36. Ke3 {[%emt 0:00:54]} Rd1 {[%emt 0:02:52]} 37. Rd2 {[%emt 0:00:21]} Rb1 {[%emt 0:00:08]} 38. Kd4 {[%emt 0:06:51]} Ke6 {[%emt 0:00:05]} 39. Re2+ {[%emt 0:00:10]} Kd6 {[%emt 0:00:03]} 40. Kc3 {[%emt 0:00:37]} Rc1+ {[%emt 0:00:28]} 41. Kd2 {[%emt 0:05:02]} Rh1 {[%emt 0:01:36]} 42. h3 {[%emt 0:00:43]} Rf1 {[%emt 0:00:03]} 43. Kc3 {[%emt 0:00:40]} f5 {[%emt 0:02:00]} 44. a4 {[%emt 0:00:30]} f4 {[%emt 0:00:19]} 45. Kb4 {[%emt 0:00:41]} Rc1 {[%emt 0:07:48]} 46. Kb5 {[%emt 0:00:55]} d4 {[%emt 0:00:05]} 47. b4 {[%emt 0:01:32]} Kd5 {[%emt 0:00:46]} 48. Re8 {[%emt 0:01:18]} d3 {[%emt 0:00:05]} 49. Rd8+ {[%emt 0:00:18]} Ke4 {[%emt 0:00:01]} 50. Kxb6 {[%emt 0:02:13]} Ke3 {[%emt 0:00:19]} 51. a5 {[%emt 0:00:37]} d2 {[%emt 0:03:19]} 52. a6 {[%emt 0:00:12]} d1=Q {[%emt 0:00:06]} 53. Rxd1 {[%emt 0:00:04]} Rxd1 {[%emt 0:00:04]} 54. a7 {[%emt 0:00:19]} Ra1 {[%emt 0:00:02]} 55. Kb7 {[%emt 0:00:37]} Kd4 {[%emt 0:00:02]} 56. b5 {[%emt 0:01:21]} Kc5 {[%emt 0:00:11]} 57. b6 {[%emt 0:00:24]} h5 {[%emt 0:01:33]} 58. h4 {[%emt 0:00:32]} Kb5 {[%emt 0:00:21]} 59. a8=Q {[%emt 0:00:41]} Rxa8 {[%emt 0:00:03]} 60. Kxa8 {[%emt 0:00:05]} Kxb6 {[%emt 0:00:04]} 61. Kb8 {[%emt 0:00:02]} Kc6 {[%emt 0:00:07]} 62. Kc8 {[%emt 0:00:11]} Kd6 {[%emt 0:00:06]} 63. Kd8 {[%emt 0:00:31]} Ke6 {[%emt 0:00:11]} 64. Kc7 {[%emt 0:00:13]} Kf5 {[%emt 0:03:44]} 65. Kd6 {[%emt 0:00:07]} Kg4 {[%emt 0:00:06]} 66. Ke5 {[%emt 0:00:06]} Kxh4 {[%emt 0:00:08]} 67. Kxf4 {[%emt 0:00:03]} 1/2-1/2

[Event "Mentese GM 2019"]
[Site "Mentese"]
[Date "2019.06.28"]
[Round "10.2"]
[White "Maghalashvili, Davit"]
[Black "Ozen, Deniz"]
[Result "1/2-1/2"]
[ECO "E06"]
[WhiteElo "2500"]
[BlackElo "2405"]
[Annotator "ChessBase"]
[PlyCount "25"]
[EventDate "2019.06.24"]
[EventType "schev"]
[EventCountry "TUR"]
[SourceTitle "playchess.com"]
[Source "ChessBase"]
[SourceQuality "1"]
[TimeControl "5400+30"]

1. d4 {[%emt 0:00:30]} d5 {[%emt 0:00:30]} 2. c4 {[%emt 0:00:00]} e6 {[%emt 0:00:00]} 3. Nf3 {[%emt 0:00:00]} Nf6 {[%emt 0:00:00]} 4. g3 {[%emt 0:00:00]} Bb4+ {[%emt 0:00:00]} 5. Bd2 {[%emt 0:00:00]} Be7 {[%emt 0:00:00]} 6. Bg2 {[%emt 0:00:00]} O-O {[%emt 0:00:30]} 7. O-O {[%emt 0:00:00]} c6 {[%emt 0:00:00]} 8. Qc2 {[%emt 0:00:30]} b6 {[%emt 0:00:00]} 9. Bf4 {[%emt 0:00:00]} Nh5 {[%emt 0:00:30]} 10. Bd2 {[%emt 0:00:00]} Nf6 {[%emt 0:00:00]} 11. Bf4 {[%emt 0:00:00]} Nh5 {[%emt 0:00:00]} 12. Bd2 {[%emt 0:00:00]} Nf6 {[%emt 0:00:00]} 13. Bf4 {[%emt 0:00:30]} 1/2-1/2

[Event "Mentese GM 2019"]
[Site "Mentese"]
[Date "2019.06.28"]
[Round "10.3"]
[White "Bagaturov, Giorgi"]
[Black "Atakisi, Umut"]
[Result "1/2-1/2"]
[ECO "D79"]
[WhiteElo "2422"]
[BlackElo "2388"]
[Annotator "NA"]
[PlyCount "24"]
[EventDate "2019.06.24"]
[EventType "schev"]
[EventCountry "TUR"]
[SourceTitle "playchess.com"]
[Source "ChessBase"]
[SourceQuality "1"]
[TimeControl "5400+30"]

1. d4 {[%emt 0:00:30]} Nf6 {[%emt 0:00:30]} 2. c4 {[%emt 0:00:00]} g6 {[%emt 0:00:00]} 3. Nf3 {[%emt 0:00:00]} Bg7 {[%emt 0:00:00]} 4. g3 {[%emt 0:00:30]} O-O {[%emt 0:00:30]} 5. Bg2 {[%emt 0:00:00]} c6 {[%emt 0:00:00]} 6. O-O {[%emt 0:00:00]} d5 {[%emt 0:00:00]} 7. cxd5 {[%emt 0:00:30]} cxd5 {[%emt 0:00:00]} 8. Ne5 {[%emt 0:00:00]} Ng4 {[%emt 0:00:00]} 9. Nf3 {[%emt 0:00:00]} Nf6 {[%emt 0:00:30]} 10. Ne5 {[%emt 0:00:30]} Ng4 {[%emt 0:00:30]} 11. Nf3 {[%emt 0:00:00]} Nf6 {[%emt 0:00:00]} 12. Ne5 {[%emt 0:00:00]} Ng4 {[%emt 0:00:00]} 1/2-1/2

[Event "Mentese GM 2019"]
[Site "Mentese"]
[Date "2019.06.28"]
[Round "10.4"]
[White "Odeev, Handszar"]
[Black "Sibashvili, Giorgi"]
[Result "0-1"]
[ECO "A17"]
[WhiteElo "2386"]
[BlackElo "2368"]
[Annotator "NA"]
[PlyCount "96"]
[EventDate "2019.06.24"]
[EventType "schev"]
[EventCountry "TUR"]
[SourceTitle "playchess.com"]
[Source "ChessBase"]
[SourceQuality "1"]
[TimeControl "5400+30"]

1. c4 {[%emt 0:00:30]} Nf6 {[%emt 0:02:30]} 2. Nc3 {[%emt 0:01:30]} e6 {[%emt 0:00:30]} 3. g3 {[%emt 0:01:30]} d5 {[%emt 0:00:30]} 4. Bg2 {[%emt 0:01:30]} d4 {[%emt 0:17:30]} 5. Ne4 {[%emt 0:09:30]} Nxe4 {[%emt 0:00:30]} 6. Bxe4 {[%emt 0:00:30]} f5 {[%emt 0:09:30]} 7. Bg2 {[%emt 0:00:30]} e5 {[%emt 0:00:30]} 8. d3 {[%emt 0:00:30]} Nc6 {[%emt 0:00:30]} 9. a3 {[%emt 0:01:30]} Be7 {[%emt 0:02:30]} 10. b4 {[%emt 0:03:30]} Bf6 {[%emt 0:00:00]} 11. Rb1 {[%emt 0:08:30]} O-O {[%emt 0:01:00]} 12. b5 {[%emt 0:05:30]} Ne7 {[%emt 0:00:30]} 13. Nf3 {[%emt 0:00:30]} e4 {[%emt 0:08:30]} 14. Ng1 {[%emt 0:04:30]} Ng6 {[%emt 0:12:30]} 15. dxe4 {[%emt 0:03:30]} fxe4 {[%emt 0:01:30]} 16. Bxe4 {[%emt 0:00:30]} Re8 {[%emt 0:02:30]} 17. Qc2 {[%emt 0:04:30]} Qe7 {[%emt 0:01:30]} 18. f3 {[%emt 0:06:30]} Qc5 {[%emt 0:09:30]} 19. Bd3 {[%emt 0:08:30]} Ne5 {[%emt 0:04:30]} 20. Bxh7+ {[%emt 0:00:30]} Kh8 {[%emt 0:00:30]} 21. Be4 {[%emt 0:01:30]} Be6 {[%emt 0:03:30]} 22. Kf1 {[%emt 0:07:30]} Nxc4 {[%emt 0:02:33]} 23. Kg2 {[%emt 0:02:30]} Bd5 {[%emt 0:12:01]} 24. Bd3 {[%emt 0:02:30]} Ne3+ {[%emt 0:00:09]} 25. Bxe3 {[%emt 0:00:30]} Qxc2 {[%emt 0:00:02]} 26. Bxc2 {[%emt 0:00:30]} Rxe3 {[%emt 0:00:07]} 27. Bd3 {[%emt 0:01:30]} c5 {[%emt 0:00:09]} 28. bxc6 {[%emt 0:00:30]} bxc6 {[%emt 0:00:01]} 29. Kf2 {[%emt 0:04:57]} c5 {[%emt 0:00:48]} 30. Rb5 {[%emt 0:03:24]} c4 {[%emt 0:01:18]} 31. Bf5 {[%emt 0:05:24]} Bf7 {[%emt 0:04:09]} 32. Be4 {[%emt 0:01:08]} Rc8 {[%emt 0:00:50]} 33. Nh3 {[%emt 0:03:45]} Rxa3 {[%emt 0:00:26]} 34. Rhb1 {[%emt 0:01:44]} Rb3 {[%emt 0:01:49]} 35. Rb7 {[%emt 0:00:16]} Kg8 {[%emt 0:01:50]} 36. Nf4 {[%emt 0:03:16]} a5 {[%emt 0:00:41]} 37. Ra1 {[%emt 0:02:27]} Rxb7 {[%emt 0:00:33]} 38. Bxb7 {[%emt 0:00:04]} Rc5 {[%emt 0:00:19]} 39. Be4 {[%emt 0:00:27]} g5 {[%emt 0:00:16]} 40. Ng2 {[%emt 0:00:12]} d3 {[%emt 0:00:29]} 41. Ra4 {[%emt 0:01:43]} d2 {[%emt 0:00:26]} 42. Bc2 {[%emt 0:00:05]} Rb5 {[%emt 0:00:26]} 43. e3 {[%emt 0:01:06]} Rb2 {[%emt 0:00:26]} 44. Bd1 {[%emt 0:00:22]} Rb1 {[%emt 0:00:36]} 45. Ke2 {[%emt 0:00:34]} c3 {[%emt 0:00:15]} 46. Bc2 {[%emt 0:00:32]} Rc1 {[%emt 0:00:24]} 47. Kd3 {[%emt 0:00:32]} d1=Q+ {[%emt 0:00:20]} 48. Bxd1 {[%emt 0:00:03]} Rxd1+ {[%emt 0:00:04]} 0-1

[Event "Mentese GM 2019"]
[Site "Mentese"]
[Date "2019.06.28"]
[Round "10.5"]
[White "Simantsev, Mikhail"]
[Black "Alumert, Orkun Efe"]
[Result "0-1"]
[ECO "D70"]
[WhiteElo "2371"]
[BlackElo "2008"]
[Annotator "NA"]
[PlyCount "70"]
[EventDate "2019.06.24"]
[EventType "schev"]
[EventCountry "TUR"]
[SourceTitle "playchess.com"]
[Source "ChessBase"]
[SourceQuality "1"]
[TimeControl "5400+30"]

1. d4 {[%emt 0:01:30]} Nf6 {[%emt 0:00:30]} 2. c4 {[%emt 0:00:30]} g6 {[%emt 0:00:30]} 3. f3 {[%emt 0:00:00]} d5 {[%emt 0:00:30]} 4. cxd5 {[%emt 0:04:00]} Nxd5 {[%emt 0:00:30]} 5. e4 {[%emt 0:00:00]} Nb6 {[%emt 0:00:00]} 6. Nc3 {[%emt 0:00:00]} Bg7 {[%emt 0:00:00]} 7. Be3 {[%emt 0:00:00]} O-O {[%emt 0:00:30]} 8. Qd2 {[%emt 0:00:00]} f5 {[%emt 0:00:00]} 9. e5 {[%emt 0:00:30]} Nc6 {[%emt 0:00:00]} 10. O-O-O {[%emt 0:00:00]} Nb4 {[%emt 0:02:30]} 11. Kb1 {[%emt 0:03:00]} Be6 {[%emt 0:01:30]} 12. a3 {[%emt 0:00:00]} N4d5 {[%emt 0:07:30]} 13. Nh3 {[%emt 0:04:00]} Nxc3+ {[%emt 0:01:30]} 14. Qxc3 {[%emt 0:03:30]} Nd5 {[%emt 0:01:30]} 15. Qe1 {[%emt 0:00:30]} f4 {[%emt 0:01:30]} 16. Bf2 {[%emt 0:02:30]} Qd7 {[%emt 0:01:30]} 17. Ng5 {[%emt 0:00:30]} Bf5+ {[%emt 0:00:00]} 18. Bd3 {[%emt 0:00:30]} Bxd3+ {[%emt 0:00:00]} 19. Rxd3 {[%emt 0:00:00]} h6 {[%emt 0:04:30]} 20. Ne4 {[%emt 0:01:00]} b6 {[%emt 0:00:30]} 21. Qe2 {[%emt 0:00:30]} Qe6 {[%emt 0:01:30]} 22. Nc3 {[%emt 0:02:30]} Rfd8 {[%emt 0:00:30]} 23. Nxd5 {[%emt 0:00:00]} Rxd5 {[%emt 0:00:00]} 24. Rhd1 {[%emt 0:00:00]} Rad8 {[%emt 0:00:00]} 25. h4 {[%emt 0:01:30]} Qf5 {[%emt 0:00:30]} 26. Qe4 {[%emt 0:00:30]} Bxe5 {[%emt 0:00:30]} 27. Qxf5 {[%emt 0:00:30]} gxf5 {[%emt 0:00:00]} 28. Kc2 {[%emt 0:00:30]} Bf6 {[%emt 0:00:00]} 29. R3d2 {[%emt 0:00:30]} Kf7 {[%emt 0:00:30]} 30. b4 {[%emt 0:00:30]} e5 {[%emt 0:00:00]} 31. dxe5 {[%emt 0:00:00]} Rxd2+ {[%emt 0:00:00]} 32. Rxd2 {[%emt 0:00:00]} Rxd2+ {[%emt 0:00:30]} 33. Kxd2 {[%emt 0:00:30]} Bxe5 {[%emt 0:00:00]} 34. b5 {[%emt 0:00:00]} Ke6 {[%emt 0:00:00]} 35. Kd3 {[%emt 0:00:00]} Kd5 {[%emt 0:00:30]} 0-1